{"text_format":"1","workbook":"xlsx","n_sheets":5,"sheets":["Einleitung","1) Allgemeine Angaben","2) Protokoll Erstgespräch","3) Prüfprotokoll","Kriterienkatalog drucken"],"not_rendered":{"charts":0,"images":5,"macros":1,"external_links":0,"defined_names":15,"comments":0,"pivot_tables":0},"unopened":[],"bounds":{"document_bytes":16777216,"sheet_cells":100000,"rows_first":2000,"rows_last":500,"rows_between":2000,"halvings":0,"cell_chars":16384,"cell_head_chars":4096},"cells_cut":0,"cells_raw":0,"read":"whole","date_system":"1900"}

{"sheet":"Einleitung","index":0,"n_rows":0,"n_cols":0,"rows_kept":0,"cut":false,"hidden":true,"merged":[]}

{"sheet":"1) Allgemeine Angaben","index":1,"n_rows":44,"n_cols":13,"rows_kept":44,"cut":false,"hidden":false,"merged":[[16,2,16,7]]}
[]
[]
[]
[]
[null,null,"Projektbezeichnung:"]
[]
[null,null,"Auftraggeber:"]
[]
[null,null,"Auftragnehmer"]
[]
[null,null,"geplante Laufzeit:"]
[]
[null,null,"DECA-Qualitätssiegel ID:",null,65432178]
[]
[]
[]
[null,null,"Einspar-Contracting"]
[]
[]
[]
[]
[]
[null,null,"QK 1","QK 2","QK 3","QK 4","QK 5","QK 6","QK 7","QK 8","QK 9",null,"Auswahl"]
[null,null,"Angemessene Analyse","Leistungs-erbringung bei der Umsetzung ","Einspargarantie","Nachweis der Energie-einsparungen","Werterhaltung und Instandhaltung","Kommunikation ","Nutzerkomfort","Nutzerinformation und -motivation","Contracting Aspekte im Vertrag"]
[null,"Energieberatung","X",null,null,"X",null,"X",null,null,null,null,{"$f":"IF($C$17=B25,\"X\",\"\")","v":""}]
[null,"Einspar-Contracting","X","X","X","X","X","X","X","X","X",null,"X"]
[null,"Anlagen-Contracting","X","X","X(1)","X","X","X","X",null,"X",null,""]
[null,"Betriebsführungscontracting","X","X","X","X","X","X","X","X(2)","X",null,""]
[null,"Umsetzung von technischen Energieeffizienzmaßnahmen","X","X",null,"X",null,"X","X",null,null,null,""]
[null,"Bestandsoptimierung","X","X","X","X",null,"X","X","X",null,null,""]
[null,"Einführung eines Energiemanagementsystems","X",null,null,"X",null,"X",null,"X(2)",null,null,""]
[]
[null,"(1) Beim Anlagen-Contracting kommt QK 3 Einspargarantie nur zur Anwendung, wenn neben der Energielieferung auch Maßnahmen zur Reduktion der Energienachfrage versprochen werden"]
[null,"(2) QK 8 wird nur bewertet wenn das konkrete Produkt/Projekt auch Nutzermotivationsmaßnahmen umfasst."]
[]
[null,null,null,null,null,null,null,null,null,null,null,null,"EEDL Auswahl"]
[null,null,null,null,null,null,null,null,null,null,null,null,"Energieberatung"]
[null,null,null,null,null,null,null,null,null,null,null,null,"Einspar-Contracting"]
[null,null,null,null,null,null,null,null,null,null,null,null,"Anlagen-Contracting"]
[null,null,null,null,null,null,null,null,null,null,null,null,"Betriebsführungscontracting"]
[null,null,null,null,null,null,null,null,null,null,null,null,"Umsetzung von technischen Energieeffizienzmaßnahmen"]
[null,null,null,null,null,null,null,null,null,null,null,null,"Bestandsoptimierung"]
[null,null,null,null,null,null,null,null,null,null,null,null,"Einführung eines Energiemanagementsystems"]
[null,null,null,null,null,null,null,null,null,null,null,null,"alle Kriterien anzeigen"]

{"sheet":"2) Protokoll Erstgespräch","index":2,"n_rows":59,"n_cols":18,"rows_kept":59,"cut":false,"hidden":false,"merged":[[4,0,4,2],[4,3,4,4]]}
[null,null,"Protokoll für Erstgespräch"]
[]
[]
[{"$f":"\"Kriteriendetails zum Nachweis von BK \"&VLOOKUP(\"x\",E9:H55,4,FALSE)","v":"Kriteriendetails zum Nachweis von BK 1.2"},null,null,{"$f":"\"Kriteriendetails zur Beurteilung von BK \"&VLOOKUP(\"x\",E9:H55,4,FALSE)","v":"Kriteriendetails zur Beurteilung von BK 1.2"}]
[{"$f":"VLOOKUP(\"x\",E11:G55,2,FALSE)","v":"Erfüllung der folgenden Anforderungen:\n(1) Alle relevanten Energieverbrauchsbereiche müssen erfasst sein \n(2) Datengrundlage sind Lastprofile (zeitliche Entwicklung des Energie-verbrauchs/Energieeinsatzes)\n(3) Angabe von SOLL-Werten für Energieverbraucher und sonstige Parameter (z.B. Komfort)\n(4) Für alle relevanten Energieverbraucher sind Benchmarks anzugeben\n(5) Wechselwirkungen müssen berücksichtigt werden.\n(6) Bereinigungsfaktoren sind zu erheben und vom Kunden freigegeben in die Baseline einzuarbeiten\n"},null,null,{"$f":"VLOOKUP(\"x\",E11:G55,3,FALSE)","v":"ex-ante: Ist die Einhaltung der genannten Anforderungen vereinbart?\nex-post: Tatsächliche Einhaltung der genannten Anforderungen im Analysebericht?\n\n"}]
[]
[]
[]
["BK","Beurteilungskriterium ","Einhaltung vereinbart","Kommentar","In diese Spalte klicken um Kriteriendetails anzuzeigen","Nachweis","Beurteilung"]
["QK 1","Angemessene Analyse",null,null,null,null,null,null,{"$f":"IF(OR(C11=\"x\",C12=\"x\",C13=\"x\"),\"x\",\"\")","v":"x"}]
["1.1","Vereinbarung des Energieanalyseprozesses gemäß EN 16247-1","x",null,null,"Vorhandensein der folgenden Bestandteile der Analyseprozesses:\n(1) Einleitender Kontakt (u.a. Ziele, Anwendungsbereich, Gründlichkeit, Zeitrahmen, Kriterien, Datenverfügbarkeit)\n(2) Auftaktbesprechung (u.a. Festlegung von verantwortlichen Personen bei AG; Klärung Zugang, Datenschutz, Geheimhaltung, ROI-Vorgabe, Erhebung der vorhandenen Bescheide)\n(3) Datenerfassung \n(4) Außeneinsatz / Vor-Ort-Begehung\n(5) Analyse (u.a. Aufschlüsselung Energieverbrauch, zeitlicher Verlauf, Anpassungsfaktoren)\n(6) Bericht\n(7) Abschlussbesprechung (u.a. Präsentation des Berichts)\n","ex-ante: Wurde die Analyse entsprechend der Norm vereinbart?\nex-post: Dokumentation des Prozesses im Analysebericht?\nDabei muss der Prozess gemäß Norm \n(1) angemessen,\n(2) vollständig,\n(3) repräsentativ,\n(4) rückverfolgbar,\n(5) zweckdienlich und\n(6) verifizierbar\nsein.\n",{"$f":"Tabelle1[[#This Row],[BK]]","v":"1.1"},{"$f":"Tabelle1[[#This Row],[Einhaltung vereinbart]]","v":"x"}]
["1.2","Angemessene Energiedatenerhebung und\n-analyse","x",null,"x","Erfüllung der folgenden Anforderungen:\n(1) Alle relevanten Energieverbrauchsbereiche müssen erfasst sein \n(2) Datengrundlage sind Lastprofile (zeitliche Entwicklung des Energie-verbrauchs/Energieeinsatzes)\n(3) Angabe von SOLL-Werten für Energieverbraucher und sonstige Parameter (z.B. Komfort)\n(4) Für alle relevanten Energieverbraucher sind Benchmarks anzugeben\n(5) Wechselwirkungen müssen berücksichtigt werden.\n(6) Bereinigungsfaktoren sind zu erheben und vom Kunden freigegeben in die Baseline einzuarbeiten\n","ex-ante: Ist die Einhaltung der genannten Anforderungen vereinbart?\nex-post: Tatsächliche Einhaltung der genannten Anforderungen im Analysebericht?\n\n",{"$f":"Tabelle1[[#This Row],[BK]]","v":"1.2"},{"$f":"Tabelle1[[#This Row],[Einhaltung vereinbart]]","v":"x"}]
["1.3","Angemessenheit der Ableitung von Maßnahmenempfehlungen","x",null,null,"Mindestkriterien des Anhang III des EEffG 2014 müssen erfüllt sein.\n(a) Maßnahmenempfehlungen werden anhand ihrer Energieeffizienz, ihrer Wirtschaftlichkeit und ihres Investitionsbedarfs klassifiziert (z.B. No-cost- und Low-cost-Maßnahmen; mäßige und hohe Investitionserfordernisse).\n(b) Maßnahmenempfehlungen basieren auf Berechnungen mit dynamischen Rechenverfahren unter Berücksichtigung des Lebenszyklus einer Maßnahme (einschließlich Berücksichtigung von Restwerten)\n(c) Die Berechnungsgrundlagen für die Wirtschaftlichkeitsanalyse müssen mit dem Auftraggeber vereinbart und transparent gemacht werden (z.B. Kalkulations¬zinssatz, Annahmen zu Preissteigerungen, Preisbasis der Energiekosten).\n(d) Umsetzung einer Sensitivitätsanalyse für die maßgeblichen Parameter?\n(e) Durchführung eines Vergleichs der vorhandenen Systeme mit den effizientesten Anlagen am Markt\n(f) Erhebung von Förderungen\n","ex-ante: Ist die Einhaltung der genannten Anforderungen vereinbart?\nex-post: Tatsächliche Einhaltung der genannten Anforderungen im Analysebericht?\nDabei ist für die einzelnen vorgeschlagenen Maßnahmen zu überprüfen: \n• Verhältnismäßigkeit\n• Repräsentativität\n• Realistische Annahmen \n• Förderwürdigkeit\n",{"$f":"Tabelle1[[#This Row],[BK]]","v":"1.3"},{"$f":"Tabelle1[[#This Row],[Einhaltung vereinbart]]","v":"x"}]
["QK 2","Leistungserbringung bei der Umsetzung von technischen Maßnahmen",null,null,null,{"$f":"\"\"","v":""},{"$f":"\"\"","v":""},null,{"$f":"IF(OR(C15=\"x\",C16=\"x\",C17=\"x\",C18=\"x\",C19=\"x\"),\"x\",\"\")","v":"x"}]
["2.1","Leistungserbringung entsprechend geltender Normen, Gesetze und Bescheidauflagen","x",null,null,"Einhaltung der folgenden Normen und technischen Standards:\nÖNORM B 2110 (Allgemeine Vertragsbestimmungen für Bauleistungen – Werkvertragsnorm)\nTechnische Einzelnormen für jene Gewerke, die für die Erbringung der EEDL relevant sind\nBescheidauflagen, die für die Erbringung der EEDL relevant sind\nÖNORM B 1301 ( Objektsicherheits-prüfungen für Nicht-Wohngebäude) ÖNORM B 1300 ( Objektsicherheits-prüfungen für Wohngebäude)\n","ex-ante: \n(a) Enthält der Vertrag eine Verpflichtung des AN zur Einhaltung der genannten Normen bzw. für das Objekt geltende Bescheide und gesetzl. Auflagen? \n(b) Enthält der Vertrag die Verpflichtung des AN, die für das Objekt geltenden Bescheide im Hinblick auf ihre Relevanz für die zu erbringende EEDL zu überprüfen?\nex-post: Wurden die Normen, gesetzlichen Auflagen und Bescheide im Zuge der Leistungserbringung eingehalten?\n",{"$f":"Tabelle1[[#This Row],[BK]]","v":"2.1"},{"$f":"Tabelle1[[#This Row],[Einhaltung vereinbart]]","v":"x"}]
["2.2","Termintreue","x",null,null,"Festlegung von Zeitplänen für die Umsetzung technischer Maßnahmen gemeinsam mit dem Auftraggeber \nEinhaltung der festgelegten Zeitpläne\n","ex-ante: Enthält der Vertrag entweder bereits fixierte Zeitpläne oder die Verpflichtung, sich mit dem Auftraggeber über Zeitpläne ins Einvernehmen zu setzen?\nex-post: Wurden Zeitpläne fixiert und in der technischen Umsetzung tatsächlich eingehalten?\n",{"$f":"Tabelle1[[#This Row],[BK]]","v":"2.2"},{"$f":"Tabelle1[[#This Row],[Einhaltung vereinbart]]","v":"x"}]
["2.3","Leistungsfeststellung und Dokumentation der Leistungserbringung","x",null,null,"Vorhandensein entsprechender Ansätze und Tools zur Leistungsfeststellung (Abnahmeprotokolle u.ä.)","ex-ante: Enthält der Vertrag eine Verpflichtung zur Anwendung entsprechender Ansätze und Tools zur Leistungsfeststellung?\nex-post: Wurden die vereinbarten Tools und Ansätze tatsächlich eingesetzt?\n",{"$f":"Tabelle1[[#This Row],[BK]]","v":"2.3"},{"$f":"Tabelle1[[#This Row],[Einhaltung vereinbart]]","v":"x"}]
["2.4","Einschulung der Nutzer bzw. des Bedienungspersonals","x",null,null,"Vorhandensein und Einhaltung eines Einschulstandards","ex-ante: Enthält der Vertrag Regelungen zur NutzerInneneinschulung?\nex-post: Wurden die vereinbarten Regelungen eingehalten?\n",{"$f":"Tabelle1[[#This Row],[BK]]","v":"2.4"},{"$f":"Tabelle1[[#This Row],[Einhaltung vereinbart]]","v":"x"}]
["2.5","Sicherstellung der Funktionstüchtigkeit neu eingebrachter Anlagen nach Vertragsende","x",null,null,"Die folgenden Maßnahmen müssen durchgeführt werden:\n• Bekanntgabe der Wartungserfordernisse und Vereinbarungen zwischen AN und AG betreffend die Durchführung der Wartung\n• Verpflichtung zur Bereithaltung von Ersatzteilen und erforderlicher Software über einen festgelegten Mindestzeitraum\n• Festlegung der Gewährleistungszeiten und der Ansprechpersonen im Gewährleistungsfall.\n","ex-ante: Enthält der Vertrag die genannten Regelungen?\nex-post: Wurden die vereinbarten Regelungen eingehalten?\n",{"$f":"Tabelle1[[#This Row],[BK]]","v":"2.5"},{"$f":"Tabelle1[[#This Row],[Einhaltung vereinbart]]","v":"x"}]
["QK 3","Einspargarantie",null,null,null,{"$f":"\"\"","v":""},{"$f":"\"\"","v":""},null,{"$f":"IF(OR(C21=\"x\",C22=\"x\",C23=\"x\"),\"x\",\"\")","v":"x"}]
["3.1","Angemessene Höhe der Einspargarantie","x",null,null,"Der Nachweis setzt eine vorangegangene Analyse voraus. Wenn der EEDL eine Analyse vorange¬gangen ist, muss die Höhe der Einspargarantie in etwa dem in der Analyse identifizierten wirtschaftlichen Energiesparpotential entsprechen (maximale Abweichung 15%)\n\n","Vergleich der vertraglich zugesicherten Einsparung mit dem wirtschaftlichen Einsparpotential lt. Analyse.",{"$f":"Tabelle1[[#This Row],[BK]]","v":"3.1"},{"$f":"Tabelle1[[#This Row],[Einhaltung vereinbart]]","v":"x"}]
["3.2","Abhängigkeit des Entgelts vom Erreichen der Einspargarantie","x",null,null,"Stufe 1: Die Entgeltreduktion muss zumindest gleich hoch sein wie das Ausmaß der Nicht-Erreichung eines Garantieversprechens.\nStufe 2: Die erreichten Einsparungen werden in einem bestimmten Verhältnis zwischen EE-Dienstleister und Kunden geteilt.\n\n","Auf Basis der vertraglichen Regelungen im Hinblick auf das Garantieversprechen",{"$f":"Tabelle1[[#This Row],[BK]]","v":"3.2"},{"$f":"Tabelle1[[#This Row],[Einhaltung vereinbart]]","v":"x"}]
["3.3","Angemessene Intervalle, in denen die Einhaltung des Garantieversprechens überprüft wird","x",null,null,"Grundsätzlich zumindest 1x pro Jahr. Davon kann nur abgewichen werden, wenn aus technischen Gründen Variationen des Einspareffekts über einen längeren Zeitraum ausgeschlos¬sen werden können.","ex-ante: auf Basis der vertraglichen Regelungen\nex-post: Wurden die vereinbarten Intervalle auch tatsächlich eingehalten?\n",{"$f":"Tabelle1[[#This Row],[BK]]","v":"3.3"},{"$f":"Tabelle1[[#This Row],[Einhaltung vereinbart]]","v":"x"}]
["QK 4","Nachweis der Energieeinsparungen",null,null,null,{"$f":"\"\"","v":""},{"$f":"\"\"","v":""},null,{"$f":"IF(OR(C25=\"x\",C26=\"x\"),\"x\",\"\")","v":"x"}]
["4.1","Anwendung eines standardisierten Verfahrens zur Berechnung von Energieeinsparungen","x",null,null,"Anwendung eines der beiden Standardverfahren:\n• EN 16212\n• IPMVP\n\n","ex-ante: Wird im Vertrag die Anwendung der genannten Normen festgelegt? Wird festgelegt, welcher der in den Standardverfahren dargestellten Ansätze konkret zur Anwendung kommen soll?\nex-post: Wurde der Nachweis der Energieeinsparung entsprechend des festgelegten Ansatzes erbracht?\n",{"$f":"Tabelle1[[#This Row],[BK]]","v":"4.1"},{"$f":"Tabelle1[[#This Row],[Einhaltung vereinbart]]","v":"x"}]
["4.2","Auswahl des passenden Ansatzes zur Berechnung der Energieeinsparung","x",null,null,"Begründung der Auswahl des Verfahrens Darstellung der Vorteile und Limitierungen des ausgewählten Verfahrens im Vergleich zu möglichen Alternativen","Vorliegen einer entsprechenden Begründung entweder zum Zeitpunkt des Vertragsab¬schlusses (ex-ante) oder im Zuge der Erbringung der EEDL (ex-post)",{"$f":"Tabelle1[[#This Row],[BK]]","v":"4.2"},{"$f":"Tabelle1[[#This Row],[Einhaltung vereinbart]]","v":"x"}]
["QK 5","Werterhaltung und Instandhaltung",null,null,null,{"$f":"\"\"","v":""},{"$f":"\"\"","v":""},null,{"$f":"IF(OR(C28=\"x\",C29=\"x\",C30=\"x\",C31=\"x\"),\"x\",\"\")","v":"x"}]
["5.1","Einhaltung der erforderlichen Anlagenverfügbarkeit","x",null,null,"Erfassung der Betriebs- bzw. Ausfallstunden\nVorgabe der Anlagenverfügbarkeit für hochsensible Bereiche: zumindest 96%\n\n","ex-ante: Verpflichtung im Vertrag\nex-post: Vorlage der Aufzeichnungen mit Differenzierung in kritische und unkritische Ausfälle\n",{"$f":"Tabelle1[[#This Row],[BK]]","v":"5.1"},{"$f":"Tabelle1[[#This Row],[Einhaltung vereinbart]]","v":"x"}]
["5.2","Rasche Störungsbehebung","x",null,null,"Annahme der Störung innerhalb von 30 min. nach Auftritt bzw. Meldung der Störung\nBehebung der Störung innerhalb von max. 24 h bzw. durchschnittlich innerhalb von 4 h Regelarbeitszeit\nFührung einer Wartungsliste die Monatlich oder im Quartal mit dem Kunden abgeglichen wird.\n","ex-ante: Verpflichtung im Vertrag\nex-post: Vorlage von Störungsprotokollen\n",{"$f":"Tabelle1[[#This Row],[BK]]","v":"5.2"},{"$f":"Tabelle1[[#This Row],[Einhaltung vereinbart]]","v":"x"}]
["5.3","Funktionstüchtigkeit der Anlage zum Vertragsende","x",null,null,"Die folgenden Maßnahmen müssen entsprechend VDMA 24186 kontinuierlich durchgeführt werden:\n(a) Kontrolle der Wartungspläne und deren Durchführung\n(b) Kontrolle der ausgetauschten Anlagenteile hinsichtlich Qualität (Stand der Technik) und Kostenbetrachtung über Vertragslaufzeit\n(c) Mängelliste, Mängelmeldung, MängelbehebungDie folgenden Maßnahmen müssen zum Vertragsende entsprechend VDMA 24186 durchgeführt werden:\n(d) Optische Überprüfung, Funktionsüberprüfung\n(e) Kontrolle der Anlagenprüfbücher\n\n","ex-ante: Verpflichtung im Vertrag\nex-post: Vorlage der genannten Unterlagen\n",{"$f":"Tabelle1[[#This Row],[BK]]","v":"5.3"},{"$f":"Tabelle1[[#This Row],[Einhaltung vereinbart]]","v":"x"}]
["5.4","Transparente Erfassung der Leistungsgrenzen","x",null,null,"Festlegung der Leistungsgrenzen in Anlagen-schemata und durch Kennzeichnung vor Ort","Überprüfung der vertraglichen Regelung (üblicherweise Annex zum Vertrag)",{"$f":"Tabelle1[[#This Row],[BK]]","v":"5.4"},{"$f":"Tabelle1[[#This Row],[Einhaltung vereinbart]]","v":"x"}]
["QK 6","Kommunikation zwischen Auftragnehmer und Auftraggeber",null,null,null,{"$f":"\"\"","v":""},{"$f":"\"\"","v":""},null,{"$f":"IF(OR(C33=\"x\",C34=\"x\",C35=\"x\",C36=\"x\"),\"x\",\"\")","v":"x"}]
["6.1","Bekanntgabe von Ansprechpersonen","x",null,null,"Festlegung der Ansprechpersonen mit der jeweiligen Aufgaben-beschreibung in einem geeigneten Dokument (Vertrag, Projekthand-buch, Aushang im Anlagenteil); Nachführung bei Änderung der Ansprechpersonen bzw. ihres Aufgabenspektrum","ex-ante: Sind Ansprechpersonen und Aufgaben in einem vertragsrelevanten Dokument festgehalten?\nex-post: Wurden Änderungen bei den Ansprechpartnern bzw. ihren Aufgaben verbindlich festgehalten\n",{"$f":"Tabelle1[[#This Row],[BK]]","v":"6.1"},{"$f":"Tabelle1[[#This Row],[Einhaltung vereinbart]]","v":"x"}]
["6.2","Einsichtnahme in Daten und Datenaustausch (in beide Richtungen)","x",null,null,"Verfügbarkeit eines Ansatzes/Tools, womit der einfache Datenaustausch sichergestellt wird","ex-ante: Überprüfung des Ansatzes/Tools zum Datenaustausch ausgehend von Referenzprojekten\nex-post: Überprüfung der Zufriedenheit mit dem Datenaustausch; Nutzung des Tools in der Praxis\n",{"$f":"Tabelle1[[#This Row],[BK]]","v":"6.2"},{"$f":"Tabelle1[[#This Row],[Einhaltung vereinbart]]","v":"x"}]
["6.3","Erfassung und kontinuierliche Aktualisierung aller vom AN durchgeführten Maßnahmen","x",null,null,"Verfügbarkeit eines Tools, das die Möglichkeit bietet, Maßnahmen übersichtlich zu erfassen","ex-ante: Überprüfung des  angebotenen Tools zur Maßnahmenerfassung ausgehend von Referenzprojekten\nex-post: zusätzlich: Wie aktuell sind die eingetragenen Daten zur Maßnahmenum-setzung während des Projekts bzw. nach dem Projektende (Stichproben)\n",{"$f":"Tabelle1[[#This Row],[BK]]","v":"6.3"},{"$f":"Tabelle1[[#This Row],[Einhaltung vereinbart]]","v":"x"}]
["6.4","Organisatorische Maßnahmen zur Einbindung des internen Betriebspersonals","x",null,null,"Festlegung von konkreten organisatorischen Maßnahmen, die den kontinuierlichen Austausch von Informationen zwischen AN und internem Betriebspersonal ermöglichen (z.B. regelmäßiges Anlagen-Jour-Fix), in geeigneten Dokumenten (z.B. Projekthandbuch)","ex-ante: Gibt es ein Projekthandbuch (oder ein ähnliches Dokument), in dem entsprechende organisatorische Maßnahmen vorgesehen sind?\nex-post: Wurden die entsprechenden organisatorischen Maßnahmen auch umgesetzt?\n",{"$f":"Tabelle1[[#This Row],[BK]]","v":"6.4"},{"$f":"Tabelle1[[#This Row],[Einhaltung vereinbart]]","v":"x"}]
["QK 7","Einhaltung des Nutzerkomforts",null,null,null,{"$f":"\"\"","v":""},{"$f":"\"\"","v":""},null,{"$f":"IF(OR(C38=\"x\",C39=\"x\",C40=\"x\"),\"x\",\"\")","v":"x"}]
["7.1","Erhebung und regelmäßige Überprüfung der aktuellen Nutzeranforderungen","x",null,null,"Sofern die entsprechenden Anlagen Bestandteil der EEDL sind, sind die NutzerInnenanforderungen hinsichtlich der folgenden Parameter zu überprüfen und festzuhalten: \n• Raumtemperatur\n• Luftfeuchte (nur für spezielle Gebäude wie z.B. Labor, Krankenhaus)\n• Luftwechsel\n• Schallpegel (innen, außen)\n• Lux-Stärke Beleuchtung\n• Wassertemperatur (unter Berücksichtigung der Legionellenthematik)\n• Bekanntgabe von festgelegten Betriebszeiten (ibs. auch Nicht-Betriebszeiten, Ferien, Urlaube etc.)\n• Reaktionszeit bei Störmeldungen; Behebungszeit bei Störungen\n","ex-ante: Umfasst die frühe Projektphase die Aufgabe der Erhebung der aktuellen NutzerInnenanforderungen?\nex-post: Wurde die Erhebung der NutzerInnenanforderungen tatsächlich durchgeführt und wurden sie bei EEDL mit längerer Laufzeit einer Zwischenprüfung unterzogen (alle 2-3 Jahre)\n",{"$f":"Tabelle1[[#This Row],[BK]]","v":"7.1"},{"$f":"Tabelle1[[#This Row],[Einhaltung vereinbart]]","v":"x"}]
["7.2","Regelmäßige Überprüfung der Einhaltung der quantitativen Nutzeranforderungen","x",null,null,"Konkret müssen die folgenden Maßnahmen umgesetzt werden:\n• regelmäßige Auswertung jener komfortbezogenen Datenpunkte, die in der Regeltechnik erfasst und abgespeichert werden (zumindest 1x jährlich)\n• zusätzliche Messungen im erforderlichen Umfang in jenen Fällen, in denen grobe Komfortdefizite berichtet werden\n","ex-ante: Vorhandensein vertraglicher Vorkehrungen\nex-post: Überprüfung der Durchführung in der Praxis\n",{"$f":"Tabelle1[[#This Row],[BK]]","v":"7.2"},{"$f":"Tabelle1[[#This Row],[Einhaltung vereinbart]]","v":"x"}]
["7.3","Einsatz qualitativer Methoden zur Erhebung der Nutzerzufriedenheit","x",null,null,"Eine der beiden folgenden Maßnahmen muss umgesetzt werden:\n• Durchführung von regelmäßigen NutzerInnengesprächen (Gesprächspartner aus allen relevanten Nutzungszonen, 1x jährlich)\n• Durchführung standardisierter NutzerInnenbefragungen (zumindest 20-30% der NutzerInnen 1x jährlich)\n","ex-ante: Vorhandensein vertraglicher Vorkehrungen\nex-post: Überprüfung der Durchführung in der Praxis\n",{"$f":"Tabelle1[[#This Row],[BK]]","v":"7.3"},{"$f":"Tabelle1[[#This Row],[Einhaltung vereinbart]]","v":"x"}]
["QK 8","Nutzerinformation und -motivation",null,null,null,{"$f":"\"\"","v":""},{"$f":"\"\"","v":""},null,{"$f":"IF(OR(C42=\"x\",C43=\"x\",C44=\"x\",C45=\"x\"),\"x\",\"\")","v":"x"}]
["8.1","Erstellung eines Konzept zur Nutzermotivation ","x",null,null,"Vorhandensein des Konzepts mit klarer Differenzierung der unterschiedlichen NutzerInnengruppen\n\n","Überprüfung des Konzepts",{"$f":"Tabelle1[[#This Row],[BK]]","v":"8.1"},{"$f":"Tabelle1[[#This Row],[Einhaltung vereinbart]]","v":"x"}]
["8.2","Veröffentlichung eines jährlichen Berichts über erreichte Einsparungen und durchgeführte Maßnahmen","x",null,null,"Vorhandensein des jährlichen Berichts\nNachweis an JF-Teilnahmen.\n","ex-ante: Besteht die Verpflichtung zu Erstellung und Veröffentlichung eines Jahresberichts?\nex-post: Wurde tatsächlich jährlich ein Bericht veröffentlicht?\n",{"$f":"Tabelle1[[#This Row],[BK]]","v":"8.2"},{"$f":"Tabelle1[[#This Row],[Einhaltung vereinbart]]","v":"x"}]
["8.3","Einrichtung eines Vorschlagswesens für Effizienzsteigerungen durch Nutzer","x",null,null,"Vorhandensein eines Vorschlags-wesens, mit dessen Hilfe die NutzerInnen Vorschläge an den EEDL übermitteln können","ex-ante: Besteht die Verpflichtung zur Einrichtung eines Vorschlagswesens?\nex-post: Wurde das Vorschlagswesen tatsächlich eingerichtet und genutzt?\n",{"$f":"Tabelle1[[#This Row],[BK]]","v":"8.3"},{"$f":"Tabelle1[[#This Row],[Einhaltung vereinbart]]","v":"x"}]
["8.4","Bereitstellung allgemeiner Informationen zum Thema Energieeffizienz","x",null,null,"Vorhandensein entsprechender Informationsmittel und/oder -aktivitäten","ex-ante: Besteht die Verpflichtung zur Bereitstellung allgemeiner Informationen?\nex-post: Umsetzung während der Projektlaufzeit?\n",{"$f":"Tabelle1[[#This Row],[BK]]","v":"8.4"},{"$f":"Tabelle1[[#This Row],[Einhaltung vereinbart]]","v":"x"}]
["QK 9","Nachvollziehbare vertragliche Festlegungen zu contracting-spezifischen Regelungserfordernissen",null,null,null,{"$f":"\"\"","v":""},{"$f":"\"\"","v":""},null,{"$f":"IF(OR(C47=\"x\",C48=\"x\",C49=\"x\",C50=\"x\",C51=\"x\",C52=\"x\",C53=\"x\",C54=\"x\",C55=\"x\"),\"x\",\"\")","v":"x"}]
["9.1","Eigentumsübergang","x",null,null,"Vorhandensein einer den gesetzlichen Vorgaben entsprechenden vertraglichen Regelung","Regelungsvorschläge für diese Tatbestände können z.B. aus diversen Contracting-Leitfäden und Guidebooks entnommen sein (u.a. IEA Task 16, GEFMA 540, www.contracting-portal.at)",{"$f":"Tabelle1[[#This Row],[BK]]","v":"9.1"},{"$f":"Tabelle1[[#This Row],[Einhaltung vereinbart]]","v":"x"}]
["9.2","Gefahrenübergang","x",null,null,"Vorhandensein einer den gesetzlichen Vorgaben entsprechenden vertraglichen Regelung","Regelungsvorschläge für diese Tatbestände können z.B. aus diversen Contracting-Leitfäden und Guidebooks entnommen sein (u.a. IEA Task 16, GEFMA 540, www.contracting-portal.at)",{"$f":"Tabelle1[[#This Row],[BK]]","v":"9.2"},{"$f":"Tabelle1[[#This Row],[Einhaltung vereinbart]]","v":"x"}]
["9.3","Versicherungen","x",null,null,"Vorhandensein einer den gesetzlichen Vorgaben entsprechenden vertraglichen Regelung","Regelungsvorschläge für diese Tatbestände können z.B. aus diversen Contracting-Leitfäden und Guidebooks entnommen sein (u.a. IEA Task 16, GEFMA 540, www.contracting-portal.at)",{"$f":"Tabelle1[[#This Row],[BK]]","v":"9.3"},{"$f":"Tabelle1[[#This Row],[Einhaltung vereinbart]]","v":"x"}]
["9.4","Ausstiegsregelungen","x",null,null,"Vorhandensein einer den gesetzlichen Vorgaben entsprechenden vertraglichen Regelung","Regelungsvorschläge für diese Tatbestände können z.B. aus diversen Contracting-Leitfäden und Guidebooks entnommen sein (u.a. IEA Task 16, GEFMA 540, www.contracting-portal.at)",{"$f":"Tabelle1[[#This Row],[BK]]","v":"9.4"},{"$f":"Tabelle1[[#This Row],[Einhaltung vereinbart]]","v":"x"}]
["9.5","Rechtsnachfolge","x",null,null,"Vorhandensein einer den gesetzlichen Vorgaben entsprechenden vertraglichen Regelung","Regelungsvorschläge für diese Tatbestände können z.B. aus diversen Contracting-Leitfäden und Guidebooks entnommen sein (u.a. IEA Task 16, GEFMA 540, www.contracting-portal.at)",{"$f":"Tabelle1[[#This Row],[BK]]","v":"9.5"},{"$f":"Tabelle1[[#This Row],[Einhaltung vereinbart]]","v":"x"}]
["9.6","Klärung der MWSt.-Frage","x",null,null,"Vorhandensein einer den gesetzlichen Vorgaben entsprechenden vertraglichen Regelung","Regelungsvorschläge für diese Tatbestände können z.B. aus diversen Contracting-Leitfäden und Guidebooks entnommen sein (u.a. IEA Task 16, GEFMA 540, www.contracting-portal.at)",{"$f":"Tabelle1[[#This Row],[BK]]","v":"9.6"},{"$f":"Tabelle1[[#This Row],[Einhaltung vereinbart]]","v":"x"}]
["9.7","Ungehindertes Zugriffs- und Zutrittsrecht","x",null,null,"Vorhandensein einer den gesetzlichen Vorgaben entsprechenden vertraglichen Regelung","Regelungsvorschläge für diese Tatbestände können z.B. aus diversen Contracting-Leitfäden und Guidebooks entnommen sein (u.a. IEA Task 16, GEFMA 540, www.contracting-portal.at)",{"$f":"Tabelle1[[#This Row],[BK]]","v":"9.7"},{"$f":"Tabelle1[[#This Row],[Einhaltung vereinbart]]","v":"x"}]
["9.8","Zulässigkeit unterschiedlicher Finanzierungsarten (Zession, Leasing, Fortfaitung,.)","x",null,null,"Vorhandensein einer den gesetzlichen Vorgaben entsprechenden vertraglichen Regelung","Regelungsvorschläge für diese Tatbestände können z.B. aus diversen Contracting-Leitfäden und Guidebooks entnommen sein (u.a. IEA Task 16, GEFMA 540, www.contracting-portal.at)",{"$f":"Tabelle1[[#This Row],[BK]]","v":"9.8"},{"$f":"Tabelle1[[#This Row],[Einhaltung vereinbart]]","v":"x"}]
["9.9","Umgang mit Förderungen bzw. der Verfügungsrechte über Einsparungen gem. EEffG","x",null,null,"Vorhandensein einer den gesetzlichen Vorgaben entsprechenden vertraglichen Regelung","Regelungsvorschläge für diese Tatbestände können z.B. aus diversen Contracting-Leitfäden und Guidebooks entnommen sein (u.a. IEA Task 16, GEFMA 540, www.contracting-portal.at)",{"$f":"Tabelle1[[#This Row],[BK]]","v":"9.9"},{"$f":"Tabelle1[[#This Row],[Einhaltung vereinbart]]","v":"x"}]
[]
[]
[]
[null,null,null,null,null,null,null,null,null,null,null,null,null,null,null,null,null,"x"]

{"sheet":"3) Prüfprotokoll","index":3,"n_rows":59,"n_cols":12,"rows_kept":59,"cut":false,"hidden":false,"merged":[[4,0,4,2],[4,3,4,4]]}
[null,null,"Prüfprotokoll"]
[]
[]
[{"$f":"\"Kriteriendetails zum Nachweis von BK \"&VLOOKUP(\"x\",E9:H55,4,FALSE)","v":"Kriteriendetails zum Nachweis von BK 3.2"},null,null,{"$f":"\"Kriteriendetails zur Beurteilung von BK \"&VLOOKUP(\"x\",E9:H55,4,FALSE)","v":"Kriteriendetails zur Beurteilung von BK 3.2"}]
[{"$f":"VLOOKUP(\"x\",E10:G55,2,FALSE)","v":"Stufe 1: Die Entgeltreduktion muss zumindest gleich hoch sein wie das Ausmaß der Nicht-Erreichung eines Garantieversprechens.\nStufe 2: Die erreichten Einsparungen werden in einem bestimmten Verhältnis zwischen EE-Dienstleister und Kunden geteilt.\n\n"},null,null,{"$f":"VLOOKUP(\"x\",E10:G55,3,FALSE)","v":"Auf Basis der vertraglichen Regelungen im Hinblick auf das Garantieversprechen"}]
[]
[]
[]
["BK","Beurteilungskriterium ","Kriterium eingehalten","Kommentar","In diese Spalte klicken um Kriteriendetails anzuzeigen","Nachweis","Beurteilung"]
["QK 1","Angemessene Analyse",null,null,null,{"$f":"\"\"","v":""},{"$f":"\"\"","v":""}]
["1.1","Vereinbarung des Energieanalyseprozesses gemäß EN 16247-1",null,null,null,"Vorhandensein der folgenden Bestandteile der Analyseprozesses:\n(1) Einleitender Kontakt (u.a. Ziele, Anwendungsbereich, Gründlichkeit, Zeitrahmen, Kriterien, Datenverfügbarkeit)\n(2) Auftaktbesprechung (u.a. Festlegung von verantwortlichen Personen bei AG; Klärung Zugang, Datenschutz, Geheimhaltung, ROI-Vorgabe, Erhebung der vorhandenen Bescheide)\n(3) Datenerfassung \n(4) Außeneinsatz / Vor-Ort-Begehung\n(5) Analyse (u.a. Aufschlüsselung Energieverbrauch, zeitlicher Verlauf, Anpassungsfaktoren)\n(6) Bericht\n(7) Abschlussbesprechung (u.a. Präsentation des Berichts)\n","ex-ante: Wurde die Analyse entsprechend der Norm vereinbart?\nex-post: Dokumentation des Prozesses im Analysebericht?\nDabei muss der Prozess gemäß Norm \n(1) angemessen,\n(2) vollständig,\n(3) repräsentativ,\n(4) rückverfolgbar,\n(5) zweckdienlich und\n(6) verifizierbar\nsein.\n",{"$f":"Tabelle1[[#This Row],[BK]]","v":"1.1"}]
["1.2","Angemessene Energiedatenerhebung und\n-analyse"," ",null,null,"Erfüllung der folgenden Anforderungen:\n(1) Alle relevanten Energieverbrauchsbereiche müssen erfasst sein \n(2) Datengrundlage sind Lastprofile (zeitliche Entwicklung des Energie-verbrauchs/Energieeinsatzes)\n(3) Angabe von SOLL-Werten für Energieverbraucher und sonstige Parameter (z.B. Komfort)\n(4) Für alle relevanten Energieverbraucher sind Benchmarks anzugeben\n(5) Wechselwirkungen müssen berücksichtigt werden.\n(6) Bereinigungsfaktoren sind zu erheben und vom Kunden freigegeben in die Baseline einzuarbeiten\n","ex-ante: Ist die Einhaltung der genannten Anforderungen vereinbart?\nex-post: Tatsächliche Einhaltung der genannten Anforderungen im Analysebericht?\n\n",{"$f":"Tabelle1[[#This Row],[BK]]","v":"1.2"}]
["1.3","Angemessenheit der Ableitung von Maßnahmenempfehlungen",null,null,null,"Mindestkriterien des Anhang III des EEffG 2014 müssen erfüllt sein.\n(a) Maßnahmenempfehlungen werden anhand ihrer Energieeffizienz, ihrer Wirtschaftlichkeit und ihres Investitionsbedarfs klassifiziert (z.B. No-cost- und Low-cost-Maßnahmen; mäßige und hohe Investitionserfordernisse).\n(b) Maßnahmenempfehlungen basieren auf Berechnungen mit dynamischen Rechenverfahren unter Berücksichtigung des Lebenszyklus einer Maßnahme (einschließlich Berücksichtigung von Restwerten)\n(c) Die Berechnungsgrundlagen für die Wirtschaftlichkeitsanalyse müssen mit dem Auftraggeber vereinbart und transparent gemacht werden (z.B. Kalkulations¬zinssatz, Annahmen zu Preissteigerungen, Preisbasis der Energiekosten).\n(d) Umsetzung einer Sensitivitätsanalyse für die maßgeblichen Parameter?\n(e) Durchführung eines Vergleichs der vorhandenen Systeme mit den effizientesten Anlagen am Markt\n(f) Erhebung von Förderungen\n","ex-ante: Ist die Einhaltung der genannten Anforderungen vereinbart?\nex-post: Tatsächliche Einhaltung der genannten Anforderungen im Analysebericht?\nDabei ist für die einzelnen vorgeschlagenen Maßnahmen zu überprüfen: \n• Verhältnismäßigkeit\n• Repräsentativität\n• Realistische Annahmen \n• Förderwürdigkeit\n",{"$f":"Tabelle1[[#This Row],[BK]]","v":"1.3"}]
["QK 2","Leistungserbringung bei der Umsetzung von technischen Maßnahmen",null,null,null,{"$f":"\"\"","v":""},{"$f":"\"\"","v":""}]
["2.1","Leistungserbringung entsprechend geltender Normen, Gesetze und Bescheidauflagen",null,null,null,"Einhaltung der folgenden Normen und technischen Standards:\nÖNORM B 2110 (Allgemeine Vertragsbestimmungen für Bauleistungen – Werkvertragsnorm)\nTechnische Einzelnormen für jene Gewerke, die für die Erbringung der EEDL relevant sind\nBescheidauflagen, die für die Erbringung der EEDL relevant sind\nÖNORM B 1301 ( Objektsicherheits-prüfungen für Nicht-Wohngebäude) ÖNORM B 1300 ( Objektsicherheits-prüfungen für Wohngebäude)\n","ex-ante: \n(a) Enthält der Vertrag eine Verpflichtung des AN zur Einhaltung der genannten Normen bzw. für das Objekt geltende Bescheide und gesetzl. Auflagen? \n(b) Enthält der Vertrag die Verpflichtung des AN, die für das Objekt geltenden Bescheide im Hinblick auf ihre Relevanz für die zu erbringende EEDL zu überprüfen?\nex-post: Wurden die Normen, gesetzlichen Auflagen und Bescheide im Zuge der Leistungserbringung eingehalten?\n",{"$f":"Tabelle1[[#This Row],[BK]]","v":"2.1"}]
["2.2","Termintreue",null,null,null,"Festlegung von Zeitplänen für die Umsetzung technischer Maßnahmen gemeinsam mit dem Auftraggeber \nEinhaltung der festgelegten Zeitpläne\n","ex-ante: Enthält der Vertrag entweder bereits fixierte Zeitpläne oder die Verpflichtung, sich mit dem Auftraggeber über Zeitpläne ins Einvernehmen zu setzen?\nex-post: Wurden Zeitpläne fixiert und in der technischen Umsetzung tatsächlich eingehalten?\n",{"$f":"Tabelle1[[#This Row],[BK]]","v":"2.2"}]
["2.3","Leistungsfeststellung und Dokumentation der Leistungserbringung",null,null,null,"Vorhandensein entsprechender Ansätze und Tools zur Leistungsfeststellung (Abnahmeprotokolle u.ä.)","ex-ante: Enthält der Vertrag eine Verpflichtung zur Anwendung entsprechender Ansätze und Tools zur Leistungsfeststellung?\nex-post: Wurden die vereinbarten Tools und Ansätze tatsächlich eingesetzt?\n",{"$f":"Tabelle1[[#This Row],[BK]]","v":"2.3"}]
["2.4","Einschulung der Nutzer bzw. des Bedienungspersonals",null,null,null,"Vorhandensein und Einhaltung eines Einschulstandards","ex-ante: Enthält der Vertrag Regelungen zur NutzerInneneinschulung?\nex-post: Wurden die vereinbarten Regelungen eingehalten?\n",{"$f":"Tabelle1[[#This Row],[BK]]","v":"2.4"}]
["2.5","Sicherstellung der Funktionstüchtigkeit neu eingebrachter Anlagen nach Vertragsende",null,null,null,"Die folgenden Maßnahmen müssen durchgeführt werden:\n• Bekanntgabe der Wartungserfordernisse und Vereinbarungen zwischen AN und AG betreffend die Durchführung der Wartung\n• Verpflichtung zur Bereithaltung von Ersatzteilen und erforderlicher Software über einen festgelegten Mindestzeitraum\n• Festlegung der Gewährleistungszeiten und der Ansprechpersonen im Gewährleistungsfall.\n","ex-ante: Enthält der Vertrag die genannten Regelungen?\nex-post: Wurden die vereinbarten Regelungen eingehalten?\n",{"$f":"Tabelle1[[#This Row],[BK]]","v":"2.5"}]
["QK 3","Einspargarantie",null,null,null,{"$f":"\"\"","v":""},{"$f":"\"\"","v":""}]
["3.1","Angemessene Höhe der Einspargarantie",null,null,null,"Der Nachweis setzt eine vorangegangene Analyse voraus. Wenn der EEDL eine Analyse vorange¬gangen ist, muss die Höhe der Einspargarantie in etwa dem in der Analyse identifizierten wirtschaftlichen Energiesparpotential entsprechen (maximale Abweichung 15%)\n\n","Vergleich der vertraglich zugesicherten Einsparung mit dem wirtschaftlichen Einsparpotential lt. Analyse.",{"$f":"Tabelle1[[#This Row],[BK]]","v":"3.1"}]
["3.2","Abhängigkeit des Entgelts vom Erreichen der Einspargarantie",null,null,"x","Stufe 1: Die Entgeltreduktion muss zumindest gleich hoch sein wie das Ausmaß der Nicht-Erreichung eines Garantieversprechens.\nStufe 2: Die erreichten Einsparungen werden in einem bestimmten Verhältnis zwischen EE-Dienstleister und Kunden geteilt.\n\n","Auf Basis der vertraglichen Regelungen im Hinblick auf das Garantieversprechen",{"$f":"Tabelle1[[#This Row],[BK]]","v":"3.2"}]
["3.3","Angemessene Intervalle, in denen die Einhaltung des Garantieversprechens überprüft wird",null,null,null,"Grundsätzlich zumindest 1x pro Jahr. Davon kann nur abgewichen werden, wenn aus technischen Gründen Variationen des Einspareffekts über einen längeren Zeitraum ausgeschlos¬sen werden können.","ex-ante: auf Basis der vertraglichen Regelungen\nex-post: Wurden die vereinbarten Intervalle auch tatsächlich eingehalten?\n",{"$f":"Tabelle1[[#This Row],[BK]]","v":"3.3"}]
["QK 4","Nachweis der Energieeinsparungen",null,null,null,{"$f":"\"\"","v":""},{"$f":"\"\"","v":""}]
["4.1","Anwendung eines standardisierten Verfahrens zur Berechnung von Energieeinsparungen",null,null,null,"Anwendung eines der beiden Standardverfahren:\n• EN 16212\n• IPMVP\n\n","ex-ante: Wird im Vertrag die Anwendung der genannten Normen festgelegt? Wird festgelegt, welcher der in den Standardverfahren dargestellten Ansätze konkret zur Anwendung kommen soll?\nex-post: Wurde der Nachweis der Energieeinsparung entsprechend des festgelegten Ansatzes erbracht?\n",{"$f":"Tabelle1[[#This Row],[BK]]","v":"4.1"}]
["4.2","Auswahl des passenden Ansatzes zur Berechnung der Energieeinsparung",null,null,null,"Begründung der Auswahl des Verfahrens Darstellung der Vorteile und Limitierungen des ausgewählten Verfahrens im Vergleich zu möglichen Alternativen","Vorliegen einer entsprechenden Begründung entweder zum Zeitpunkt des Vertragsab¬schlusses (ex-ante) oder im Zuge der Erbringung der EEDL (ex-post)",{"$f":"Tabelle1[[#This Row],[BK]]","v":"4.2"}]
["QK 5","Werterhaltung und Instandhaltung",null,null,null,{"$f":"\"\"","v":""},{"$f":"\"\"","v":""}]
["5.1","Einhaltung der erforderlichen Anlagen¬verfügbarkeit",null,null,null,"Erfassung der Betriebs- bzw. Ausfallstunden\nVorgabe der Anlagenverfügbarkeit für hochsensible Bereiche: zumindest 96%\n\n","ex-ante: Verpflichtung im Vertrag\nex-post: Vorlage der Aufzeichnungen mit Differenzierung in kritische und unkritische Ausfälle\n",{"$f":"Tabelle1[[#This Row],[BK]]","v":"5.1"}]
["5.2","Rasche Störungs-behebung",null,null,null,"Annahme der Störung innerhalb von 30 min. nach Auftritt bzw. Meldung der Störung\nBehebung der Störung innerhalb von max. 24 h bzw. durchschnittlich innerhalb von 4 h Regelarbeitszeit\nFührung einer Wartungsliste die Monatlich oder im Quartal mit dem Kunden abgeglichen wird.\n","ex-ante: Verpflichtung im Vertrag\nex-post: Vorlage von Störungsprotokollen\n",{"$f":"Tabelle1[[#This Row],[BK]]","v":"5.2"}]
["5.3","Funktionstüchtigkeit der Anlage zum Vertrags¬ende",null,null,null,"Die folgenden Maßnahmen müssen entsprechend VDMA 24186 kontinuierlich durchgeführt werden:\n(a) Kontrolle der Wartungspläne und deren Durchführung\n(b) Kontrolle der ausgetauschten Anlagenteile hinsichtlich Qualität (Stand der Technik) und Kostenbetrachtung über Vertragslaufzeit\n(c) Mängelliste, Mängelmeldung, MängelbehebungDie folgenden Maßnahmen müssen zum Vertragsende entsprechend VDMA 24186 durchgeführt werden:\n(d) Optische Überprüfung, Funktionsüberprüfung\n(e) Kontrolle der Anlagenprüfbücher\n\n","ex-ante: Verpflichtung im Vertrag\nex-post: Vorlage der genannten Unterlagen\n",{"$f":"Tabelle1[[#This Row],[BK]]","v":"5.3"}]
["5.4","Transparente Erfassung der Leistungsgrenzen",null,null,null,"Festlegung der Leistungsgrenzen in Anlagen-schemata und durch Kennzeichnung vor Ort","Überprüfung der vertraglichen Regelung (üblicherweise Annex zum Vertrag)",{"$f":"Tabelle1[[#This Row],[BK]]","v":"5.4"}]
["QK 6","Kommunikation zwischen Auftragnehmer und Auftraggeber",null,null,null,{"$f":"\"\"","v":""},{"$f":"\"\"","v":""}]
["6.1","Bekanntgabe von Ansprechpersonen",null,null,null,"Festlegung der Ansprechpersonen mit der jeweiligen Aufgaben-beschreibung in einem geeigneten Dokument (Vertrag, Projekthand-buch, Aushang im Anlagenteil); Nachführung bei Änderung der Ansprechpersonen bzw. ihres Aufgabenspektrum","ex-ante: Sind Ansprechpersonen und Aufgaben in einem vertragsrelevanten Dokument festgehalten?\nex-post: Wurden Änderungen bei den Ansprechpartnern bzw. ihren Aufgaben verbindlich festgehalten\n",{"$f":"Tabelle1[[#This Row],[BK]]","v":"6.1"}]
["6.2","Einsichtnahme in Daten und Datenaustausch (in beide Richtungen)",null,null,null,"Verfügbarkeit eines Ansatzes/Tools, womit der einfache Datenaustausch sichergestellt wird","ex-ante: Überprüfung des Ansatzes/Tools zum Datenaustausch ausgehend von Referenzprojekten\nex-post: Überprüfung der Zufriedenheit mit dem Datenaustausch; Nutzung des Tools in der Praxis\n",{"$f":"Tabelle1[[#This Row],[BK]]","v":"6.2"}]
["6.3","Erfassung und kontinuierliche Aktualisierung aller vom AN durchgeführten Maßnahmen",null,null,null,"Verfügbarkeit eines Tools, das die Möglichkeit bietet, Maßnahmen übersichtlich zu erfassen","ex-ante: Überprüfung des  angebotenen Tools zur Maßnahmenerfassung ausgehend von Referenzprojekten\nex-post: zusätzlich: Wie aktuell sind die eingetragenen Daten zur Maßnahmenum-setzung während des Projekts bzw. nach dem Projektende (Stichproben)\n",{"$f":"Tabelle1[[#This Row],[BK]]","v":"6.3"}]
["6.4","Organisatorische Maßnahmen zur Einbindung des internen Betriebspersonals",null,null,null,"Festlegung von konkreten organisatorischen Maßnahmen, die den kontinuierlichen Austausch von Informationen zwischen AN und internem Betriebspersonal ermöglichen (z.B. regelmäßiges Anlagen-Jour-Fix), in geeigneten Dokumenten (z.B. Projekthandbuch)","ex-ante: Gibt es ein Projekthandbuch (oder ein ähnliches Dokument), in dem entsprechende organisatorische Maßnahmen vorgesehen sind?\nex-post: Wurden die entsprechenden organisatorischen Maßnahmen auch umgesetzt?\n",{"$f":"Tabelle1[[#This Row],[BK]]","v":"6.4"}]
["QK 7","Einhaltung des Nutzerkomforts",null,null,null,{"$f":"\"\"","v":""},{"$f":"\"\"","v":""}]
["7.1","Erhebung und regelmäßige Überprüfung der aktuellen Nutzeranforderungen",null,null,null,"Sofern die entsprechenden Anlagen Bestandteil der EEDL sind, sind die NutzerInnenanforderungen hinsichtlich der folgenden Parameter zu überprüfen und festzuhalten: \n• Raumtemperatur\n• Luftfeuchte (nur für spezielle Gebäude wie z.B. Labor, Krankenhaus)\n• Luftwechsel\n• Schallpegel (innen, außen)\n• Lux-Stärke Beleuchtung\n• Wassertemperatur (unter Berücksichtigung der Legionellenthematik)\n• Bekanntgabe von festgelegten Betriebszeiten (ibs. auch Nicht-Betriebszeiten, Ferien, Urlaube etc.)\n• Reaktionszeit bei Störmeldungen; Behebungszeit bei Störungen\n","ex-ante: Umfasst die frühe Projektphase die Aufgabe der Erhebung der aktuellen NutzerInnenanforderungen?\nex-post: Wurde die Erhebung der NutzerInnenanforderungen tatsächlich durchgeführt und wurden sie bei EEDL mit längerer Laufzeit einer Zwischenprüfung unterzogen (alle 2-3 Jahre)\n",{"$f":"Tabelle1[[#This Row],[BK]]","v":"7.1"}]
["7.2","Regelmäßige Überprüfung der Einhaltung der quantitativen Nutzeranforderungen",null,null,null,"Konkret müssen die folgenden Maßnahmen umgesetzt werden:\n• regelmäßige Auswertung jener komfortbezogenen Datenpunkte, die in der Regeltechnik erfasst und abgespeichert werden (zumindest 1x jährlich)\n• zusätzliche Messungen im erforderlichen Umfang in jenen Fällen, in denen grobe Komfortdefizite berichtet werden\n","ex-ante: Vorhandensein vertraglicher Vorkehrungen\nex-post: Überprüfung der Durchführung in der Praxis\n",{"$f":"Tabelle1[[#This Row],[BK]]","v":"7.2"}]
["7.3","Einsatz qualitativer Methoden zur Erhebung der Nutzerzufriedenheit",null,null,null,"Eine der beiden folgenden Maßnahmen muss umgesetzt werden:\n• Durchführung von regelmäßigen NutzerInnengesprächen (Gesprächspartner aus allen relevanten Nutzungszonen, 1x jährlich)\n• Durchführung standardisierter NutzerInnenbefragungen (zumindest 20-30% der NutzerInnen 1x jährlich)\n","ex-ante: Vorhandensein vertraglicher Vorkehrungen\nex-post: Überprüfung der Durchführung in der Praxis\n",{"$f":"Tabelle1[[#This Row],[BK]]","v":"7.3"}]
["QK 8","Nutzerinformation und -motivation",null,null,null,{"$f":"\"\"","v":""},{"$f":"\"\"","v":""}]
["8.1","Erstellung eines Konzept zur Nutzermotivation ",null,null,null,"Vorhandensein des Konzepts mit klarer Differenzierung der unterschiedlichen NutzerInnengruppen\n\n","Überprüfung des Konzepts",{"$f":"Tabelle1[[#This Row],[BK]]","v":"8.1"}]
["8.2","Veröffentlichung eines jährlichen Berichts über erreichte Einsparungen und durchgeführte Maßnahmen",null,null,null,"Vorhandensein des jährlichen Berichts\nNachweis an JF-Teilnahmen.\n","ex-ante: Besteht die Verpflichtung zu Erstellung und Veröffentlichung eines Jahresberichts?\nex-post: Wurde tatsächlich jährlich ein Bericht veröffentlicht?\n",{"$f":"Tabelle1[[#This Row],[BK]]","v":"8.2"}]
["8.3","Einrichtung eines Vorschlagswesens für Effizienzsteigerungen durch Nutzer",null,null,null,"Vorhandensein eines Vorschlags-wesens, mit dessen Hilfe die NutzerInnen Vorschläge an den EEDL übermitteln können","ex-ante: Besteht die Verpflichtung zur Einrichtung eines Vorschlagswesens?\nex-post: Wurde das Vorschlagswesen tatsächlich eingerichtet und genutzt?\n",{"$f":"Tabelle1[[#This Row],[BK]]","v":"8.3"}]
["8.4","Bereitstellung allgemeiner Informationen zum Thema Energieeffizienz",null,null,null,"Vorhandensein entsprechender Informationsmittel und/oder -aktivitäten","ex-ante: Besteht die Verpflichtung zur Bereitstellung allgemeiner Informationen?\nex-post: Umsetzung während der Projektlaufzeit?\n",{"$f":"Tabelle1[[#This Row],[BK]]","v":"8.4"}]
["QK 9","Nachvollziehbare vertragliche Festlegungen zu contracting-spezifischen Regelungserfordernissen",null,null,null,{"$f":"\"\"","v":""},{"$f":"\"\"","v":""}]
["9.1","Eigentumsübergang",null,null,null,"Vorhandensein einer den gesetzlichen Vorgaben entsprechenden vertraglichen Regelung","Regelungsvorschläge für diese Tatbestände können z.B. aus diversen Contracting-Leitfäden und Guidebooks entnommen sein (u.a. IEA Task 16, GEFMA 540, www.contracting-portal.at)",{"$f":"Tabelle1[[#This Row],[BK]]","v":"9.1"}]
["9.2","Gefahrenübergang",null,null,null,"Vorhandensein einer den gesetzlichen Vorgaben entsprechenden vertraglichen Regelung","Regelungsvorschläge für diese Tatbestände können z.B. aus diversen Contracting-Leitfäden und Guidebooks entnommen sein (u.a. IEA Task 16, GEFMA 540, www.contracting-portal.at)",{"$f":"Tabelle1[[#This Row],[BK]]","v":"9.2"}]
["9.3","Versicherungen",null,null,null,"Vorhandensein einer den gesetzlichen Vorgaben entsprechenden vertraglichen Regelung","Regelungsvorschläge für diese Tatbestände können z.B. aus diversen Contracting-Leitfäden und Guidebooks entnommen sein (u.a. IEA Task 16, GEFMA 540, www.contracting-portal.at)",{"$f":"Tabelle1[[#This Row],[BK]]","v":"9.3"}]
["9.4","Ausstiegsregelungen",null,null,null,"Vorhandensein einer den gesetzlichen Vorgaben entsprechenden vertraglichen Regelung","Regelungsvorschläge für diese Tatbestände können z.B. aus diversen Contracting-Leitfäden und Guidebooks entnommen sein (u.a. IEA Task 16, GEFMA 540, www.contracting-portal.at)",{"$f":"Tabelle1[[#This Row],[BK]]","v":"9.4"}]
["9.5","Rechtsnachfolge",null,null,null,"Vorhandensein einer den gesetzlichen Vorgaben entsprechenden vertraglichen Regelung","Regelungsvorschläge für diese Tatbestände können z.B. aus diversen Contracting-Leitfäden und Guidebooks entnommen sein (u.a. IEA Task 16, GEFMA 540, www.contracting-portal.at)",{"$f":"Tabelle1[[#This Row],[BK]]","v":"9.5"}]
["9.6","Klärung der MWSt.-Frage",null,null,null,"Vorhandensein einer den gesetzlichen Vorgaben entsprechenden vertraglichen Regelung","Regelungsvorschläge für diese Tatbestände können z.B. aus diversen Contracting-Leitfäden und Guidebooks entnommen sein (u.a. IEA Task 16, GEFMA 540, www.contracting-portal.at)",{"$f":"Tabelle1[[#This Row],[BK]]","v":"9.6"}]
["9.7","Ungehindertes Zugriffs- und Zutrittsrecht",null,null,null,"Vorhandensein einer den gesetzlichen Vorgaben entsprechenden vertraglichen Regelung","Regelungsvorschläge für diese Tatbestände können z.B. aus diversen Contracting-Leitfäden und Guidebooks entnommen sein (u.a. IEA Task 16, GEFMA 540, www.contracting-portal.at)",{"$f":"Tabelle1[[#This Row],[BK]]","v":"9.7"}]
["9.8","Zulässigkeit unterschiedlicher Finanzierungsarten (Zession, Leasing, Fortfaitung,.)",null,null,null,"Vorhandensein einer den gesetzlichen Vorgaben entsprechenden vertraglichen Regelung","Regelungsvorschläge für diese Tatbestände können z.B. aus diversen Contracting-Leitfäden und Guidebooks entnommen sein (u.a. IEA Task 16, GEFMA 540, www.contracting-portal.at)",{"$f":"Tabelle1[[#This Row],[BK]]","v":"9.8"}]
["9.9","Umgang mit Förderungen bzw. der Verfügungsrechte über Einsparungen gem. EEffG",null,null,null,"Vorhandensein einer den gesetzlichen Vorgaben entsprechenden vertraglichen Regelung","Regelungsvorschläge für diese Tatbestände können z.B. aus diversen Contracting-Leitfäden und Guidebooks entnommen sein (u.a. IEA Task 16, GEFMA 540, www.contracting-portal.at)",{"$f":"Tabelle1[[#This Row],[BK]]","v":"9.9"}]
[]
[]
[null,null,null,null,null,null,null,null,null,null,null,"x"]
[null,null,null,null,null,null,null,null,null,null,null," "]

{"sheet":"Kriterienkatalog drucken","index":4,"n_rows":72,"n_cols":19,"rows_kept":72,"cut":false,"hidden":false,"merged":[[15,3,15,4],[16,3,16,4],[17,3,17,4],[18,3,18,4],[2,3,2,5],[10,3,10,4],[11,3,11,4],[12,3,12,4],[13,3,13,4],[14,3,14,4]]}
[null,null,null,null,"Kriterienkatalog drucken"]
[]
[null,null,null,"Einspar-Contracting"]
[]
[]
[null,null,null,null,{"$f":"IF(OR(D3=I15,D3=I13),\"Kriterienkatalog für die\",\"Kriterienkatalog für\")","v":"Kriterienkatalog für"}]
[null,null,null,null,{"$f":"D3","v":"Einspar-Contracting"}]
[null,null,null,null,null,null,null,null,null,"QK 1","QK 2","QK 3","QK 4","QK 5","QK 6","QK 7","QK 8","QK 9"]
[null,null,{"$f":"IF(OR(D3=I15,D3=I13),\"Der Katalog für die \"&D3&\" enthält folgende Qualitätskriterien: \",\"Der Katalog für \"&D3&\" enthält folgende Qualitätskriterien: \")","v":"Der Katalog für Einspar-Contracting enthält folgende Qualitätskriterien: "},null,null,null,null,null,"Energieberatung","x",null,null,"x",null,"x",null,null,null,2]
[null,null,null,null,null,null,null,null,"Einspar-Contracting","x","x","x","x","x","x","x","x","x",3]
[null,null,"QK 1","Angemessene Analyse",null,{"$f":"IF(VLOOKUP($D$3,$I$9:$R$16,S9,FALSE)=\"x\",\"x\",\"\")","v":"x"},null,null,"Anlagen-Contracting","x","x","x","x","x","x","x",null,"x",4]
[null,null,"QK 2","Leistungserbringung bei der Umsetzung technischer Maßnahmen",null,"x",null,null,"Betriebsführungscontracting","x","x","x","x","x","x","x","x","x",5]
[null,null,"QK 3","Einspargarantie",null,"x",null,null,"Umsetzung von technischen Energieeffizienzmaßnahmen","x","x",null,"x",null,"x","x",null,null,6]
[null,null,"QK 4","Nachweis der Energie-einsparungen",null,"x",null,null,"Bestandsoptimierung","x","x","x","x",null,"x","x","x",null,7]
[null,null,"QK 5","Werterhaltung und Instandhaltung",null,"x",null,null,"Einführung eines Energiemanagementsystems","x",null,null,"x",null,"x",null,"x",null,8]
[null,null,"QK 6","Kommunikation zwischen AN und AG",null,"x",null,null,"alle Kriterien anzeigen","x","x","x","x","x","x","x","x","x",9]
[null,null,"QK 7","Einhaltung des Nutzerkomforts",null,"x",null,null,null,null,null,null,null,null,null,null,null,null,10]
[null,null,"QK 8","Nutzerinformation und -motivation",null,"x"]
[null,null,"QK 9","Nachvollziehbare vertragliche Festlegungen zu contracting-spezifischen Regelungserfordernissen",null,"x"]
[]
[]
[]
[]
[]
[]
[null,"QK","BK","Beurteilungskriterium ","Nachweis","Beurteilung"]
[null,1,"QK 1","Angemessene Analyse"]
[null,1,"1.1","Vereinbarung des Energieanalyseprozesses gemäß EN 16247-1","Vorhandensein der folgenden Bestandteile der Analyseprozesses:\n(1) Einleitender Kontakt (u.a. Ziele, Anwendungsbereich, Gründlichkeit, Zeitrahmen, Kriterien, Datenverfügbarkeit)\n(2) Auftaktbesprechung (u.a. Festlegung von verantwortlichen Personen bei AG; Klärung Zugang, Datenschutz, Geheimhaltung, ROI-Vorgabe, Erhebung der vorhandenen Bescheide)\n(3) Datenerfassung \n(4) Außeneinsatz / Vor-Ort-Begehung\n(5) Analyse (u.a. Aufschlüsselung Energieverbrauch, zeitlicher Verlauf, Anpassungsfaktoren)\n(6) Bericht\n(7) Abschlussbesprechung (u.a. Präsentation des Berichts)","ex-ante: Wurde die Analyse entsprechend der Norm vereinbart?\nex-post: Dokumentation des Prozesses im Analysebericht?\nDabei muss der Prozess gemäß Norm \n(1) angemessen,\n(2) vollständig,\n(3) repräsentativ,\n(4) rückverfolgbar,\n(5) zweckdienlich und\n(6) verifizierbar\nsein."]
[null,1,"1.2","Angemessene Energiedatenerhebung und\n-analyse","Erfüllung der folgenden Anforderungen:\n(1) Alle relevanten Energieverbrauchsbereiche müssen erfasst sein \n(2) Datengrundlage sind Lastprofile (zeitliche Entwicklung des Energie-verbrauchs/Energieeinsatzes)\n(3) Angabe von SOLL-Werten für Energieverbraucher und sonstige Parameter (z.B. Komfort)\n(4) Für alle relevanten Energieverbraucher sind Benchmarks anzugeben\n(5) Wechselwirkungen müssen berücksichtigt werden.\n(6) Bereinigungsfaktoren sind zu erheben und vom Kunden freigegeben in die Baseline einzuarbeiten","ex-ante: Ist die Einhaltung der genannten Anforderungen vereinbart?\nex-post: Tatsächliche Einhaltung der genannten Anforderungen im Analysebericht?\n\n"]
[null,1,"1.3","Angemessenheit der Ableitung von Maßnahmenempfehlungen","Mindestkriterien des Anhang III des EEffG 2014 müssen erfüllt sein.\n(a) Maßnahmenempfehlungen werden anhand ihrer Energieeffizienz, ihrer Wirtschaftlichkeit und ihres Investitionsbedarfs klassifiziert (z.B. No-cost- und Low-cost-Maßnahmen; mäßige und hohe Investitionserfordernisse).\n(b) Maßnahmenempfehlungen basieren auf Berechnungen mit dynamischen Rechenverfahren unter Berücksichtigung des Lebenszyklus einer Maßnahme (einschließlich Berücksichtigung von Restwerten)\n(c) Die Berechnungsgrundlagen für die Wirtschaftlichkeitsanalyse müssen mit dem Auftraggeber vereinbart und transparent gemacht werden (z.B. Kalkulations¬zinssatz, Annahmen zu Preissteigerungen, Preisbasis der Energiekosten).\n(d) Umsetzung einer Sensitivitätsanalyse für die maßgeblichen Parameter?\n(e) Durchführung eines Vergleichs der vorhandenen Systeme mit den effizientesten Anlagen am Markt\n(f) Erhebung von Förderungen","ex-ante: Ist die Einhaltung der genannten Anforderungen vereinbart?\nex-post: Tatsächliche Einhaltung der genannten Anforderungen im Analysebericht?\nDabei ist für die einzelnen vorgeschlagenen Maßnahmen zu überprüfen: \n• Verhältnismäßigkeit\n• Repräsentativität\n• Realistische Annahmen \n• Förderwürdigkeit\n"]
[null,2,"QK 2","Leistungserbringung bei der Umsetzung von technischen Maßnahmen"]
[null,2,"2.1","Leistungserbringung entsprechend geltender Normen, Gesetze und Bescheidauflagen","Einhaltung der folgenden Normen und technischen Standards:\nÖNORM B 2110 (Allgemeine Vertragsbestimmungen für Bauleistungen – Werkvertragsnorm)\nTechnische Einzelnormen für jene Gewerke, die für die Erbringung der EEDL relevant sind\nBescheidauflagen, die für die Erbringung der EEDL relevant sind\nÖNORM B 1301 ( Objektsicherheits-prüfungen für Nicht-Wohngebäude) ÖNORM B 1300 ( Objektsicherheits-prüfungen für Wohngebäude)\n","ex-ante: \n(a) Enthält der Vertrag eine Verpflichtung des AN zur Einhaltung der genannten Normen bzw. für das Objekt geltende Bescheide und gesetzl. Auflagen? \n(b) Enthält der Vertrag die Verpflichtung des AN, die für das Objekt geltenden Bescheide im Hinblick auf ihre Relevanz für die zu erbringende EEDL zu überprüfen?\nex-post: Wurden die Normen, gesetzlichen Auflagen und Bescheide im Zuge der Leistungserbringung eingehalten?\n"]
[null,2,"2.2","Termintreue","Festlegung von Zeitplänen für die Umsetzung technischer Maßnahmen gemeinsam mit dem Auftraggeber \nEinhaltung der festgelegten Zeitpläne\n","ex-ante: Enthält der Vertrag entweder bereits fixierte Zeitpläne oder die Verpflichtung, sich mit dem Auftraggeber über Zeitpläne ins Einvernehmen zu setzen?\nex-post: Wurden Zeitpläne fixiert und in der technischen Umsetzung tatsächlich eingehalten?"]
[null,2,"2.3","Leistungsfeststellung und Dokumentation der Leistungserbringung","Vorhandensein entsprechender Ansätze und Tools zur Leistungsfeststellung (Abnahmeprotokolle u.ä.)","ex-ante: Enthält der Vertrag eine Verpflichtung zur Anwendung entsprechender Ansätze und Tools zur Leistungsfeststellung?\nex-post: Wurden die vereinbarten Tools und Ansätze tatsächlich eingesetzt?"]
[null,2,"2.4","Einschulung der Nutzer bzw. des Bedienungspersonals","Vorhandensein und Einhaltung eines Einschulstandards","ex-ante: Enthält der Vertrag Regelungen zur NutzerInneneinschulung?\nex-post: Wurden die vereinbarten Regelungen eingehalten?"]
[null,2,"2.5","Sicherstellung der Funktionstüchtigkeit neu eingebrachter Anlagen nach Vertragsende","Die folgenden Maßnahmen müssen durchgeführt werden:\n• Bekanntgabe der Wartungserfordernisse und Vereinbarungen zwischen AN und AG betreffend die Durchführung der Wartung\n• Verpflichtung zur Bereithaltung von Ersatzteilen und erforderlicher Software über einen festgelegten Mindestzeitraum\n• Festlegung der Gewährleistungszeiten und der Ansprechpersonen im Gewährleistungsfall.","ex-ante: Enthält der Vertrag die genannten Regelungen?\nex-post: Wurden die vereinbarten Regelungen eingehalten?\n"]
[null,3,"QK 3","Einspargarantie"]
[null,3,"3.1","Angemessene Höhe der Einspargarantie","Der Nachweis setzt eine vorangegangene Analyse voraus. Wenn der EEDL eine Analyse vorangegangen ist, muss die Höhe der Einspargarantie in etwa dem in der Analyse identifizierten wirtschaftlichen Energiesparpotential entsprechen (maximale Abweichung 15%)","Vergleich der vertraglich zugesicherten Einsparung mit dem wirtschaftlichen Einsparpotential lt. Analyse."]
[null,3,"3.2","Abhängigkeit des Entgelts vom Erreichen der Einspargarantie","Stufe 1: Die Entgeltreduktion muss zumindest gleich hoch sein wie das Ausmaß der Nicht-Erreichung eines Garantieversprechens.\nStufe 2: Die erreichten Einsparungen werden in einem bestimmten Verhältnis zwischen EE-Dienstleister und Kunden geteilt.","Auf Basis der vertraglichen Regelungen im Hinblick auf das Garantieversprechen"]
[null,3,"3.3","Angemessene Intervalle, in denen die Einhaltung des Garantieversprechens überprüft wird","Grundsätzlich zumindest 1x pro Jahr. Davon kann nur abgewichen werden, wenn aus technischen Gründen Variationen des Einspareffekts über einen längeren Zeitraum ausgeschlos¬sen werden können.","ex-ante: auf Basis der vertraglichen Regelungen\nex-post: Wurden die vereinbarten Intervalle auch tatsächlich eingehalten?\n"]
[null,4,"QK 4","Nachweis der Energieeinsparungen"]
[null,4,"4.1","Anwendung eines standardisierten Verfahrens zur Berechnung von Energieeinsparungen","Anwendung eines der beiden Standardverfahren:\n• EN 16212\n• IPMVP\n\n","ex-ante: Wird im Vertrag die Anwendung der genannten Normen festgelegt? Wird festgelegt, welcher der in den Standardverfahren dargestellten Ansätze konkret zur Anwendung kommen soll?\nex-post: Wurde der Nachweis der Energieeinsparung entsprechend des festgelegten Ansatzes erbracht?"]
[null,4,"4.2","Auswahl des passenden Ansatzes zur Berechnung der Energieeinsparung","Begründung der Auswahl des Verfahrens Darstellung der Vorteile und Limitierungen des ausgewählten Verfahrens im Vergleich zu möglichen Alternativen","Vorliegen einer entsprechenden Begründung entweder zum Zeitpunkt des Vertragsab¬schlusses (ex-ante) oder im Zuge der Erbringung der EEDL (ex-post)"]
[null,5,"QK 5","Werterhaltung und Instandhaltung"]
[null,5,"5.1","Einhaltung der erforderlichen Anlagen¬verfügbarkeit","Erfassung der Betriebs- bzw. Ausfallstunden\nVorgabe der Anlagenverfügbarkeit für hochsensible Bereiche: zumindest 96%\n\n","ex-ante: Verpflichtung im Vertrag\nex-post: Vorlage der Aufzeichnungen mit Differenzierung in kritische und unkritische Ausfälle"]
[null,5,"5.2","Rasche Störungs-behebung","Annahme der Störung innerhalb von 30 min. nach Auftritt bzw. Meldung der Störung\nBehebung der Störung innerhalb von max. 24 h bzw. durchschnittlich innerhalb von 4 h Regelarbeitszeit\nFührung einer Wartungsliste die Monatlich oder im Quartal mit dem Kunden abgeglichen wird.","ex-ante: Verpflichtung im Vertrag\nex-post: Vorlage von Störungsprotokollen\n"]
[null,5,"5.3","Funktionstüchtigkeit der Anlage zum Vertrags¬ende","Die folgenden Maßnahmen müssen entsprechend VDMA 24186 kontinuierlich durchgeführt werden:\n(a) Kontrolle der Wartungspläne und deren Durchführung\n(b) Kontrolle der ausgetauschten Anlagenteile hinsichtlich Qualität (Stand der Technik) und Kostenbetrachtung über Vertragslaufzeit\n(c) Mängelliste, Mängelmeldung, MängelbehebungDie folgenden Maßnahmen müssen zum Vertragsende entsprechend VDMA 24186 durchgeführt werden:\n(d) Optische Überprüfung, Funktionsüberprüfung\n(e) Kontrolle der Anlagenprüfbücher","ex-ante: Verpflichtung im Vertrag\nex-post: Vorlage der genannten Unterlagen\n"]
[null,5,"5.4","Transparente Erfassung der Leistungsgrenzen","Festlegung der Leistungsgrenzen in Anlagen-schemata und durch Kennzeichnung vor Ort","Überprüfung der vertraglichen Regelung (üblicherweise Annex zum Vertrag)"]
[null,6,"QK 6","Kommunikation zwischen Auftragnehmer und Auftraggeber"]
[null,6,"6.1","Bekanntgabe von Ansprechpersonen","Festlegung der Ansprechpersonen mit der jeweiligen Aufgaben-beschreibung in einem geeigneten Dokument (Vertrag, Projekthand-buch, Aushang im Anlagenteil); Nachführung bei Änderung der Ansprechpersonen bzw. ihres Aufgabenspektrum","ex-ante: Sind Ansprechpersonen und Aufgaben in einem vertragsrelevanten Dokument festgehalten?\nex-post: Wurden Änderungen bei den Ansprechpartnern bzw. ihren Aufgaben verbindlich festgehalten"]
[null,6,"6.2","Einsichtnahme in Daten und Datenaustausch (in beide Richtungen)","Verfügbarkeit eines Ansatzes/Tools, womit der einfache Datenaustausch sichergestellt wird","ex-ante: Überprüfung des Ansatzes/Tools zum Datenaustausch ausgehend von Referenzprojekten\nex-post: Überprüfung der Zufriedenheit mit dem Datenaustausch; Nutzung des Tools in der Praxis"]
[null,6,"6.3","Erfassung und kontinuierliche Aktualisierung aller vom AN durchgeführten Maßnahmen","Verfügbarkeit eines Tools, das die Möglichkeit bietet, Maßnahmen übersichtlich zu erfassen","ex-ante: Überprüfung des  angebotenen Tools zur Maßnahmenerfassung ausgehend von Referenzprojekten\nex-post: zusätzlich: Wie aktuell sind die eingetragenen Daten zur Maßnahmenum-setzung während des Projekts bzw. nach dem Projektende (Stichproben)"]
[null,6,"6.4","Organisatorische Maßnahmen zur Einbindung des internen Betriebspersonals","Festlegung von konkreten organisatorischen Maßnahmen, die den kontinuierlichen Austausch von Informationen zwischen AN und internem Betriebspersonal ermöglichen (z.B. regelmäßiges Anlagen-Jour-Fix), in geeigneten Dokumenten (z.B. Projekthandbuch)","ex-ante: Gibt es ein Projekthandbuch (oder ein ähnliches Dokument), in dem entsprechende organisatorische Maßnahmen vorgesehen sind?\nex-post: Wurden die entsprechenden organisatorischen Maßnahmen auch umgesetzt?"]
[null,7,"QK 7","Einhaltung des Nutzerkomforts"]
[null,7,"7.1","Erhebung und regelmäßige Überprüfung der aktuellen Nutzeranforderungen","Sofern die entsprechenden Anlagen Bestandteil der EEDL sind, sind die NutzerInnenanforderungen hinsichtlich der folgenden Parameter zu überprüfen und festzuhalten: \n• Raumtemperatur\n• Luftfeuchte (nur für spezielle Gebäude wie z.B. Labor, Krankenhaus)\n• Luftwechsel\n• Schallpegel (innen, außen)\n• Lux-Stärke Beleuchtung\n• Wassertemperatur (unter Berücksichtigung der Legionellenthematik)\n• Bekanntgabe von festgelegten Betriebszeiten (ibs. auch Nicht-Betriebszeiten, Ferien, Urlaube etc.)\n• Reaktionszeit bei Störmeldungen; Behebungszeit bei Störungen","ex-ante: Umfasst die frühe Projektphase die Aufgabe der Erhebung der aktuellen NutzerInnenanforderungen?\nex-post: Wurde die Erhebung der NutzerInnenanforderungen tatsächlich durchgeführt und wurden sie bei EEDL mit längerer Laufzeit einer Zwischenprüfung unterzogen (alle 2-3 Jahre)\n"]
[null,7,"7.2","Regelmäßige Überprüfung der Einhaltung der quantitativen Nutzeranforderungen","Konkret müssen die folgenden Maßnahmen umgesetzt werden:\n• regelmäßige Auswertung jener komfortbezogenen Datenpunkte, die in der Regeltechnik erfasst und abgespeichert werden (zumindest 1x jährlich)\n• zusätzliche Messungen im erforderlichen Umfang in jenen Fällen, in denen grobe Komfortdefizite berichtet werden","ex-ante: Vorhandensein vertraglicher Vorkehrungen\nex-post: Überprüfung der Durchführung in der Praxis\n"]
[null,7,"7.3","Einsatz qualitativer Methoden zur Erhebung der Nutzerzufriedenheit","Eine der beiden folgenden Maßnahmen muss umgesetzt werden:\n• Durchführung von regelmäßigen NutzerInnengesprächen (Gesprächspartner aus allen relevanten Nutzungszonen, 1x jährlich)\n• Durchführung standardisierter NutzerInnenbefragungen (zumindest 20-30% der NutzerInnen 1x jährlich)","ex-ante: Vorhandensein vertraglicher Vorkehrungen\nex-post: Überprüfung der Durchführung in der Praxis\n"]
[null,8,"QK 8","Nutzerinformation und -motivation"]
[null,8,"8.1","Erstellung eines Konzept zur Nutzermotivation ","Vorhandensein des Konzepts mit klarer Differenzierung der unterschiedlichen NutzerInnengruppen\n\n","Überprüfung des Konzepts"]
[null,8,"8.2","Veröffentlichung eines jährlichen Berichts über erreichte Einsparungen und durchgeführte Maßnahmen","Vorhandensein des jährlichen Berichts\nNachweis an JF-Teilnahmen.\n","ex-ante: Besteht die Verpflichtung zu Erstellung und Veröffentlichung eines Jahresberichts?\nex-post: Wurde tatsächlich jährlich ein Bericht veröffentlicht?"]
[null,8,"8.3","Einrichtung eines Vorschlagswesens für Effizienzsteigerungen durch Nutzer","Vorhandensein eines Vorschlags-wesens, mit dessen Hilfe die NutzerInnen Vorschläge an den EEDL übermitteln können","ex-ante: Besteht die Verpflichtung zur Einrichtung eines Vorschlagswesens?\nex-post: Wurde das Vorschlagswesen tatsächlich eingerichtet und genutzt?"]
[null,8,"8.4","Bereitstellung allgemeiner Informationen zum Thema Energieeffizienz","Vorhandensein entsprechender Informationsmittel und/oder -aktivitäten","ex-ante: Besteht die Verpflichtung zur Bereitstellung allgemeiner Informationen?\nex-post: Umsetzung während der Projektlaufzeit?"]
[null,9,"QK 9","Nachvollziehbare vertragliche Festlegungen zu contracting-spezifischen Regelungserfordernissen"]
[null,9,"9.1","Eigentumsübergang","Vorhandensein einer den gesetzlichen Vorgaben entsprechenden vertraglichen Regelung","Regelungsvorschläge für diese Tatbestände können z.B. aus diversen Contracting-Leitfäden und Guidebooks entnommen sein (u.a. IEA Task 16, GEFMA 540, www.contracting-portal.at)"]
[null,9,"9.2","Gefahrenübergang","Vorhandensein einer den gesetzlichen Vorgaben entsprechenden vertraglichen Regelung","Regelungsvorschläge für diese Tatbestände können z.B. aus diversen Contracting-Leitfäden und Guidebooks entnommen sein (u.a. IEA Task 16, GEFMA 540, www.contracting-portal.at)"]
[null,9,"9.3","Versicherungen","Vorhandensein einer den gesetzlichen Vorgaben entsprechenden vertraglichen Regelung","Regelungsvorschläge für diese Tatbestände können z.B. aus diversen Contracting-Leitfäden und Guidebooks entnommen sein (u.a. IEA Task 16, GEFMA 540, www.contracting-portal.at)"]
[null,9,"9.4","Ausstiegsregelungen","Vorhandensein einer den gesetzlichen Vorgaben entsprechenden vertraglichen Regelung","Regelungsvorschläge für diese Tatbestände können z.B. aus diversen Contracting-Leitfäden und Guidebooks entnommen sein (u.a. IEA Task 16, GEFMA 540, www.contracting-portal.at)"]
[null,9,"9.5","Rechtsnachfolge","Vorhandensein einer den gesetzlichen Vorgaben entsprechenden vertraglichen Regelung","Regelungsvorschläge für diese Tatbestände können z.B. aus diversen Contracting-Leitfäden und Guidebooks entnommen sein (u.a. IEA Task 16, GEFMA 540, www.contracting-portal.at)"]
[null,9,"9.6","Klärung der MWSt.-Frage","Vorhandensein einer den gesetzlichen Vorgaben entsprechenden vertraglichen Regelung","Regelungsvorschläge für diese Tatbestände können z.B. aus diversen Contracting-Leitfäden und Guidebooks entnommen sein (u.a. IEA Task 16, GEFMA 540, www.contracting-portal.at)"]
[null,9,"9.7","Ungehindertes Zugriffs- und Zutrittsrecht","Vorhandensein einer den gesetzlichen Vorgaben entsprechenden vertraglichen Regelung","Regelungsvorschläge für diese Tatbestände können z.B. aus diversen Contracting-Leitfäden und Guidebooks entnommen sein (u.a. IEA Task 16, GEFMA 540, www.contracting-portal.at)"]
[null,9,"9.8","Zulässigkeit unterschiedlicher Finanzierungsarten (Zession, Leasing, Fortfaitung,.)","Vorhandensein einer den gesetzlichen Vorgaben entsprechenden vertraglichen Regelung","Regelungsvorschläge für diese Tatbestände können z.B. aus diversen Contracting-Leitfäden und Guidebooks entnommen sein (u.a. IEA Task 16, GEFMA 540, www.contracting-portal.at)"]
[null,9,"9.9","Umgang mit Förderungen bzw. der Verfügungsrechte über Einsparungen gem. EEffG","Vorhandensein einer den gesetzlichen Vorgaben entsprechenden vertraglichen Regelung","Regelungsvorschläge für diese Tatbestände können z.B. aus diversen Contracting-Leitfäden und Guidebooks entnommen sein (u.a. IEA Task 16, GEFMA 540, www.contracting-portal.at)"]